fUST/lending_fUST_20250327
["ID","MTS","AMOUNT","RATE_DAILY","PERIOD"]
[356746646,1743085921518,-523.27126296,0.00047865,120]
[356746647,1743085921562,-500.0,0.00047865,120]
[356746648,1743085921609,-1610.12,0.00047865,120]
[356746649,1743085921661,-563.64,0.00047865,120]
[356746650,1743085921706,-581.95,0.00047865,120]
[356746651,1743085921753,-1610.12,0.00047865,120]
[356746652,1743085921798,-155.98596303,0.00047865,120]
[356746653,1743085921844,-563.64,0.00047865,120]
[356746654,1743085921888,-581.95,0.00047865,120]
[356746655,1743085921929,-1610.12,0.00047865,120]
[356746656,1743085921972,-563.64,0.00047865,120]
[356746657,1743085922014,-1610.12,0.00047865,120]
[356746658,1743085922056,-581.95,0.00047865,120]
[356746659,1743085922100,-563.64,0.00047865,120]
[356746660,1743085922143,-1610.12,0.00047865,120]
[356746661,1743085922188,-563.64,0.00047865,120]
[356746662,1743085922230,-581.95,0.00047865,120]
[356746663,1743085922272,-1610.12,0.00047865,120]
[356746664,1743085922316,-563.64,0.00047865,120]
[356746665,1743085922363,-581.95,0.00047865,120]
[356746666,1743085922411,-1610.12,0.00047865,120]
[356746667,1743085922455,-563.64,0.00047865,120]
[356746668,1743085922498,-581.95,0.00047865,120]
[356746669,1743085922544,-1610.12,0.00047865,120]
[356746670,1743085922591,-563.64,0.00047865,120]
[356746671,1743085922635,-581.95,0.00047865,120]
[356746672,1743085922678,-1610.12,0.00047865,120]
[356746673,1743085922723,-563.64,0.00047865,120]
[356746674,1743085922768,-581.95,0.00047865,120]
[356746675,1743085922809,-500.0,0.00047865,120]
[356746676,1743085922854,-1610.12,0.00047865,120]
[356746677,1743085922897,-563.64,0.00047865,120]
[356746678,1743085922940,-581.95,0.00047865,120]
[356746679,1743085922983,-500.0,0.00047865,120]
[356746680,1743085923028,-1610.12,0.00047865,120]
[356746681,1743085923073,-581.95,0.00047865,120]
[356746682,1743085923118,-563.64,0.00047865,120]
[356746683,1743085923163,-500.0,0.00047865,120]
[356746684,1743085923211,-1610.12,0.00047865,120]
[356746685,1743085923255,-581.95,0.00047865,120]
[356746686,1743085923502,-563.64,0.00047865,120]
[356746687,1743085923548,-500.0,0.00047865,120]
[356746688,1743085923597,-297.35075184,0.00047865,120]
[356746689,1743085925703,-2839.4064752,0.0002356,2]
[356746690,1743085925713,-1131.396815,0.00023661,2]
[356746691,1743085925723,-235.961928,0.00023757,2]
[356746692,1743085925733,-400.0,0.00024,15]
[356746693,1743085925743,-300.0,0.00024447,2]
[356746694,1743085925753,-1819.76571146,0.00024448,2]
[356746695,1743085925762,-500.0,0.00024499,2]
[356746696,1743085925772,-500.0,0.00024499,2]
[356746697,1743085925782,-500.0,0.00024499,2]
[356746698,1743085925792,-500.0,0.00024499,2]
[356746699,1743085925801,-500.0,0.00024499,2]
[356746700,1743085925811,-500.0,0.00024499,2]
[356746701,1743085925821,-500.0,0.00024499,2]
[356746702,1743085925831,-623.29369573,0.00024499,2]
[356746703,1743085925841,-500.0,0.00024499,2]
[356746704,1743085925851,-500.0,0.00024499,2]
[356746705,1743085925861,-575.04660585,0.00024499,2]
[356746706,1743085925871,-5000.0,0.000245,2]
[356746707,1743085925881,-11643.27395792,0.000245,2]
[356746757,1743087032643,-165.490938,0.00010959,2]
[356746758,1743087032652,-771.22252859,0.00023463,2]
[356746759,1743087032676,-1963.51672091,0.00023463,2]
[356746781,1743087038591,-4306.65839843,0.00023463,2]
[356746794,1743087040785,-935.91780117,0.00023463,2]
[356746795,1743087040795,-1000.0,0.00023489,2]
[356746797,1743087040805,-300.0,0.0002356,2]
[356746798,1743087040815,-30.54473512,0.00023561,2]
[356746814,1743087043757,-4969.45526488,0.00023561,2]
[356746817,1743087043768,-150.0,0.00024,2]
[356746819,1743087043780,-150.0,0.00024306,2]
[356746821,1743087043790,-1690.68711399,0.00024388,2]
[356746823,1743087043799,-504.9364371,0.00024473,2]
[356746824,1743087043809,-500.0,0.00024473,2]
[356746825,1743087043819,-500.0,0.00024473,2]
[356746826,1743087043828,-500.0,0.00024473,2]
[356746827,1743087043838,-500.0,0.00024473,2]
[356746828,1743087043847,-138.3990591,0.00024473,2]
[356746829,1743087043859,-361.6009409,0.00024473,2]
[356746830,1743087043867,-70.15815475,0.00024473,2]
[356746844,1743087046671,-429.84184525,0.00024473,2]
[356746845,1743087046682,-535.44368373,0.00024473,2]
[356746846,1743087046692,-500.0,0.00024473,2]
[356746847,1743087046701,-500.0,0.00024473,2]
[356746848,1743087046711,-157.64830403,0.00024479,3]
[356746849,1743087046723,-76.56169597,0.00024479,3]
[356746850,1743087046733,-500.0,0.00024487,2]
[356746851,1743087046743,-633.14892239,0.00024487,2]
[356746852,1743087046752,-179.78938164,0.00024487,2]
[356746853,1743087046764,-320.21061836,0.00024487,2]
[356746854,1743087046773,-87.44123997,0.00024487,2]
[356746855,1743087046798,-488.96907206,0.00024487,2]
[356746856,1743087046807,-87.12424386,0.00024488,3]
[356746857,1743087046821,-41024.82523154,0.00024488,3]
[356746858,1743087046831,-487.88046607,0.00024488,2]
[356746859,1743087046840,-63200.7172744,0.00024489,2]
[356746860,1743087046851,-34153.39299615,0.00024489,2]
[356746896,1743088202981,3628.95546993,0.00012,3]
[356746919,1743088232815,-165.490938,0.00010959,2]
[356746920,1743088232824,-411.50222326,0.00023368,2]
[356746921,1743088232851,-1588.49777674,0.00023368,2]
[356746922,1743088232861,-175.74329088,0.00023999,2]
[356746923,1743088232871,-158.38550499,0.000243,2]
[356746924,1743088232880,-1479.35122475,0.000243,2]
[356746925,1743088232890,-158.38550496,0.0002432,2]
[356746926,1743088232899,-158.38550496,0.00024339,2]
[356746927,1743088232909,-158.38550496,0.00024359,2]
[356746928,1743088232918,-300.0,0.00024372,2]
[356746929,1743088232928,-500.0,0.00024373,2]
[356746930,1743088232937,-530.60329494,0.00024373,2]
[356746931,1743088232947,-500.0,0.00024373,2]
[356746932,1743088232957,-500.0,0.00024373,2]
[356746933,1743088232966,-500.0,0.00024373,2]
[356746934,1743088232976,-368.15464723,0.00024373,2]
[356746936,1743088232986,-500.0,0.00024373,2]
[356746938,1743088232995,-500.0,0.00024373,2]
[356746940,1743088233005,-151.0,0.00024374,2]
[356746942,1743088233015,-600.0,0.00024374,2]
[356746944,1743088233024,-195.18,0.00024379,3]
[356746945,1743088233034,-585.55,0.00024379,3]
[356746947,1743088233043,-499.6332948,0.00024388,2]
[356746949,1743088233053,-175.15670134,0.00024388,2]
[356746951,1743088233062,-865.30314781,0.00024389,2]
[356746953,1743088233072,-235.34952518,0.00024389,2]
[356746955,1743088233082,-5000.0,0.00024389,2]
[356746958,1743088233091,-84910.34800676,0.00024389,2]
[356746961,1743088233102,-883.29270887,0.00024389,2]
[356746965,1743088233114,-1099.33230728,0.00024389,2]
[356747020,1743088238652,-1745.96,0.00024389,2]
[356747021,1743088238663,-96869.8747662,0.00024389,2]
[356747069,1743088243858,-419.60505579,0.00024389,2]
[356747071,1743088243902,-502.76834211,0.00024389,2]
[356747082,1743088246804,-1944.35066407,0.00024389,2]
[356747083,1743088246818,-108716.47288914,0.00024389,2]
[356747084,1743088246829,-16008.85366358,0.00024389,2]
[356747085,1743088246840,-4571.86495361,0.00024389,2]
[356747088,1743088296063,-166.502025,0.00027397,120]
[356747089,1743088296097,-8.317975,0.000294,120]
[356747097,1743089119380,50000.0,0.00025,120]
[356747099,1743089325279,2926.059564,0.0002,120]
[356747153,1743089432060,-173.59507,0.00010959,2]
[356747155,1743089432070,-250.0,0.00017,2]
[356747157,1743089432080,-246.97491,0.00022913,2]
[356747189,1743089437980,-3.02509,0.00022913,2]
[356747190,1743089437989,-2373.2510812,0.00023218,2]
[356747191,1743089437999,-158.47730402,0.00023386,2]
[356747192,1743089438010,-141.52269598,0.00023386,2]
[356747193,1743089438020,-19163.8876936,0.00023387,2]
[356747194,1743089438030,-187.7660309,0.00023414,2]
[356747195,1743089438039,-152.0,0.00024141,2]
[356747196,1743089438049,-196.24933733,0.00024287,2]
[356747197,1743089438059,-500.0,0.00024287,2]
[356747198,1743089438070,-500.0,0.00024287,2]
[356747199,1743089438079,-500.0,0.00024287,2]
[356747200,1743089438089,-500.0,0.00024287,2]
[356747201,1743089438099,-500.0,0.00024287,2]
[356747202,1743089438109,-500.0,0.00024287,2]
[356747203,1743089438118,-260.75495179,0.00024287,2]
[356747204,1743089438128,-500.0,0.00024287,2]
[356747205,1743089438138,-500.0,0.00024287,2]
[356747206,1743089438147,-500.0,0.00024287,2]
[356747207,1743089438157,-500.0,0.00024287,2]
[356747208,1743089438167,-500.0,0.00024287,2]
[356747209,1743089438177,-500.0,0.00024287,2]
[356747210,1743089438186,-500.0,0.00024287,2]
[356747211,1743089438195,-620.59563071,0.00024287,2]
[356747212,1743089438206,-500.0,0.00024287,2]
[356747213,1743089438215,-500.0,0.00024287,2]
[356747214,1743089438224,-500.0,0.00024287,2]
[356747215,1743089438234,-500.0,0.00024287,2]
[356747216,1743089438244,-500.0,0.00024287,2]
[356747217,1743089438253,-500.0,0.00024287,2]
[356747218,1743089438262,-500.0,0.00024287,2]
[356747219,1743089438271,-500.0,0.00024287,2]
[356747220,1743089438280,-500.0,0.00024287,2]
[356747221,1743089438290,-500.0,0.00024287,2]
[356747222,1743089438300,-500.0,0.00024287,2]
[356747223,1743089438310,-500.0,0.00024287,2]
[356747224,1743089438321,-5000.0,0.00024289,2]
[356747225,1743089438330,-500.0,0.0002435,2]
[356747226,1743089438340,-500.0,0.0002435,2]
[356747227,1743089438349,-500.0,0.0002435,2]
[356747228,1743089438359,-160.0,0.00024388,2]
[356747229,1743089438368,-37038.09271,0.000244,2]
[356747230,1743089438377,-460.42518434,0.00024424,2]
[356747231,1743089438387,-500.0,0.00024425,2]
[356747232,1743089438397,-500.0,0.00024425,2]
[356747233,1743089438407,-500.0,0.00024425,2]
[356747234,1743089438416,-6132.66584299,0.00024467,2]
[356747235,1743089438425,-298.88059172,0.00024499,2]
[356747236,1743089438435,-2231.96035765,0.000245,2]
[356747237,1743089438447,-174.76568443,0.000245,2]
[356747238,1743089438457,-153.0,0.000245,2]
[356747239,1743089438466,-1537.23029448,0.000249,5]
[356747240,1743089438476,-381.5445411,0.00025,2]
[356747241,1743089438485,-400.0,0.00025087,2]
[356747242,1743089438494,-227.95758854,0.00025296,2]
[356747243,1743089438504,-331.74380186,0.00025377,2]
[356747244,1743089438527,-88.25619814,0.00025377,2]
[356747245,1743089438536,-2200.0,0.00025408,2]
[356747246,1743089438548,-1537.23029427,0.00025417,6]
[356747247,1743089438557,-278.4930816,0.00026163,4]
[356747248,1743089438567,-390.36,0.00026442,3]
[356747249,1743089438576,-3920.50324574,0.00026491,2]
[356747268,1743089443303,-1294.43232163,0.00024188,2]
[356747269,1743089443313,-1537.23029427,0.00025934,6]
[356747270,1743089443325,-1537.23029427,0.00026452,6]
[356747271,1743089443334,-3012.30325805,0.00026491,2]
[356747272,1743089443344,-151.0,0.000265,11]
[356747273,1743089443354,-300.0,0.000266,12]
[356747274,1743089443363,-151.0,0.000267,19]
[356747275,1743089443372,-151.0,0.00026854,2]
[356747276,1743089443382,-600.0,0.00026854,2]
[356747277,1743089443391,-6932.80650379,0.0002686,2]
[356747278,1743089443401,-16327.44706656,0.0002687,2]
[356747308,1743089446096,-14964.42133421,0.0002687,2]
[356747309,1743089446107,-350.20199531,0.0002687,2]
[356747310,1743089446119,-2036.169184,0.0002687,2]
[356747311,1743089561294,10000.0,0.00025,120]
[356747312,1743089570922,10000.0,0.00025,120]
[356747313,1743089587807,10000.0,0.00025,120]
[356747314,1743089649011,3737.65,0.00014,30]
[356747409,1743090638053,-175.994037,0.00010634,2]
[356747410,1743090638063,-175.994037,0.00010959,2]
[356747411,1743090638072,-200.0,0.00023,10]
[356747412,1743090638081,-300.0,0.00024399,2]
[356747413,1743090638093,-500.0,0.000244,2]
[356747414,1743090638102,-439.0307576,0.000244,2]
[356747415,1743090638112,-500.0,0.000244,2]
[356747416,1743090638122,-500.0,0.000244,2]
[356747417,1743090638133,-248.9999991,0.000244,2]
[356747418,1743090638142,-349.78614204,0.000244,2]
[356747419,1743090638154,-150.21385796,0.000244,2]
[356747420,1743090638165,-248.46159246,0.000244,2]
[356747422,1743090638174,-500.0,0.000244,2]
[356747423,1743090638183,-1372.01963987,0.000249,5]
[356747424,1743090638193,-1008.63,0.00025,4]
[356747425,1743090638203,-1905.0,0.00025,14]
[356747426,1743090638213,-1905.0,0.00025,14]
[356747427,1743090638222,-1479.56756181,0.00025,14]
[356747432,1743090640447,-425.43243819,0.00025,14]
[356747433,1743090640456,-500.0,0.0002504,2]
[356747434,1743090640466,-209.16619909,0.0002504,2]
[356747435,1743090640476,-500.0,0.0002504,2]
[356747436,1743090640485,-500.0,0.0002504,2]
[356747437,1743090640495,-503.49011949,0.0002504,2]
[356747438,1743090640504,-252.84326478,0.0002504,2]
[356747439,1743090640514,-500.0,0.0002504,2]
[356747440,1743090640523,-270.72600767,0.0002504,2]
[356747441,1743090640533,-503.97436619,0.0002504,2]
[356747442,1743090640542,-500.54745208,0.0002504,2]
[356747443,1743090640551,-500.0,0.0002504,2]
[356747444,1743090640561,-500.0,0.0002504,2]
[356747445,1743090640570,-500.0,0.0002504,2]
[356747446,1743090640580,-500.0,0.0002504,2]
[356747447,1743090640589,-400.0,0.00025184,2]
[356747448,1743090640599,-500.0,0.00025286,2]
[356747449,1743090640609,-292.90188756,0.00025286,2]
[356747450,1743090640618,-392.2537544,0.00025286,2]
[356747451,1743090640627,-500.0,0.00025286,2]
[356747452,1743090640636,-506.17204549,0.00025286,2]
[356747453,1743090640646,-156.41787969,0.00025286,2]
[356747454,1743090640655,-500.0,0.00025286,2]
[356747455,1743090640664,-501.64742881,0.00025286,2]
[356747456,1743090640674,-500.0,0.00025286,2]
[356747457,1743090640683,-1372.01963962,0.00025417,6]
[356747458,1743090640692,-2214.175,0.00025588,2]
[356747459,1743090640701,-1132.62828147,0.00025886,2]
[356747460,1743090640711,-500.0,0.00025933,2]
[356747461,1743090640720,-500.0,0.00025933,2]
[356747462,1743090640729,-500.0,0.00025933,2]
[356747463,1743090640738,-516.85198957,0.00025933,2]
[356747464,1743090640748,-500.0,0.00025933,2]
[356747465,1743090640757,-500.0,0.00025933,2]
[356747466,1743090640766,-500.0,0.00025933,2]
[356747467,1743090640776,-500.0,0.00025933,2]
[356747468,1743090640785,-500.0,0.00025933,2]
[356747469,1743090640794,-500.0,0.00025933,2]
[356747470,1743090640804,-500.0,0.00025933,2]
[356747471,1743090640813,-500.0,0.00025933,2]
[356747472,1743090640822,-419.11633557,0.00025933,2]
[356747473,1743090640832,-500.0,0.00025933,2]
[356747474,1743090640841,-500.0,0.00025933,2]
[356747475,1743090640850,-500.0,0.00025933,2]
[356747476,1743090640859,-500.0,0.00025933,2]
[356747477,1743090640869,-500.0,0.00025933,2]
[356747478,1743090640878,-500.0,0.00025933,2]
[356747479,1743090640887,-500.0,0.00025933,2]
[356747480,1743090640896,-1372.01963962,0.00025934,6]
[356747481,1743090640905,-500.0,0.00025986,2]
[356747482,1743090640915,-465.19125813,0.00025987,2]
[356747483,1743090640924,-1000.0,0.00026,26]
[356747484,1743090640933,-208.8698112,0.00026163,4]
[356747485,1743090640943,-5000.0,0.00026333,2]
[356747486,1743090640952,-420.0,0.00026449,2]
[356747487,1743090640961,-1372.01963962,0.00026452,6]
[356747488,1743090640971,-300.0,0.000266,12]
[356747489,1743090640980,-204.03045044,0.00026764,2]
[356747490,1743090640989,-600.0,0.00026764,2]
[356747491,1743090640999,-151.0,0.00026764,2]
[356747492,1743090641008,-151.0,0.00026764,2]
[356747493,1743090641017,-399.77494364,0.00026769,2]
[356747494,1743090641027,-31889.2971208,0.0002677,2]
[356747495,1743090641036,-432.6515739,0.0002678,2]
[356747496,1743090641045,-235.34952516,0.0002678,2]
[356747497,1743090641055,-322000.0,0.0002678,2]
[356747498,1743090641065,-250.0,0.000268,4]
[356747499,1743090641075,-250.0,0.000268,4]
[356747500,1743090641085,-250.0,0.000268,4]
[356747501,1743090641095,-622.2,0.00026819,2]
[356747502,1743090641104,-302.0,0.00026869,2]
[356747503,1743090641114,-645.2214,0.00026874,2]
[356747504,1743090641125,-669.0945918,0.00026929,2]
[356747505,1743090641135,-1372.01963962,0.00026969,7]
[356747506,1743090641145,-4555.6138744,0.0002697,2]
[356747507,1743090641154,-500.0,0.00026973,2]
[356747508,1743090641165,-500.0,0.00026973,2]
[356747509,1743090641174,-500.0,0.00026973,2]
[356747510,1743090641183,-500.0,0.00026973,2]
[356747511,1743090641193,-500.0,0.00026973,2]
[356747512,1743090641205,-501.17848862,0.00026973,2]
[356747513,1743090641214,-500.0,0.00026973,2]
[356747514,1743090641224,-519.75200994,0.00026973,2]
[356747515,1743090641233,-500.0,0.00026973,2]
[356747516,1743090641242,-500.0,0.00026973,2]
[356747517,1743090641252,-500.0,0.00026973,2]
[356747518,1743090641261,-500.0,0.00026973,2]
[356747519,1743090641270,-500.0,0.00026973,2]
[356747520,1743090641279,-375.5474473,0.00026973,2]
[356747521,1743090641289,-500.0,0.00026973,2]
[356747522,1743090641299,-500.0,0.00026973,2]
[356747523,1743090641309,-500.0,0.00026973,2]
[356747524,1743090641318,-500.0,0.00026973,2]
[356747525,1743090641330,-509.89477651,0.00026973,2]
[356747526,1743090641339,-500.0,0.00026973,2]
[356747527,1743090641349,-500.0,0.00026973,2]
[356747528,1743090641358,-500.0,0.00026973,2]
[356747529,1743090641367,-500.0,0.00026973,2]
[356747530,1743090641376,-500.0,0.00026973,2]
[356747531,1743090641565,-151.0,0.0002698,7]
[356747532,1743090641579,-241.708368,0.0002698,7]
[356747533,1743090641588,-241.708368,0.0002698,7]
[356747534,1743090641597,-151.0,0.0002698,7]
[356747535,1743090641607,-151.0,0.0002698,7]
[356747536,1743090641616,-151.0,0.0002698,7]
[356747537,1743090641626,-151.0,0.0002698,7]
[356747538,1743090641636,-151.0,0.0002698,7]
[356747539,1743090641646,-217.922623,0.0002698,7]
[356747540,1743090641655,-217.922623,0.0002698,7]
[356747541,1743090641665,-628.954665,0.0002698,7]
[356747542,1743090641675,-628.954665,0.0002698,7]
[356747543,1743090641685,-151.0,0.0002698,7]
[356747544,1743090641695,-151.0,0.0002698,7]
[356747545,1743090641705,-151.0,0.0002698,7]
[356747546,1743090641714,-200.82841,0.0002698,7]
[356747547,1743090641725,-398.619219,0.0002698,7]
[356747548,1743090641735,-398.619219,0.0002698,7]
[356747549,1743090641746,-151.0,0.0002698,7]
[356747550,1743090641760,-151.0,0.0002698,7]
[356747551,1743090641770,-151.0,0.0002698,7]
[356747552,1743090641779,-1683.724776,0.0002698,7]
[356747553,1743090641789,-1683.724776,0.0002698,7]
[356747554,1743090641799,-151.0,0.0002698,7]
[356747555,1743090641808,-191.473876,0.0002698,7]
[356747556,1743090641818,-191.473876,0.0002698,7]
[356747557,1743090641827,-54667.3664928,0.0002698,2]
[356747558,1743090641836,-693.8510917,0.00026984,2]
[356747559,1743090641846,-599999.9719919,0.0002699,15]
[356747560,1743090641855,-738.768868,0.0002699,7]
[356747561,1743090641864,-738.768868,0.0002699,7]
[356747562,1743090641874,-565.842788,0.0002699,7]
[356747563,1743090641883,-151.0,0.0002699,7]
[356747564,1743090641892,-234.265066,0.0002699,7]
[356747565,1743090641901,-191.801395,0.0002699,7]
[356747566,1743090641911,-191.801395,0.0002699,7]
[356747567,1743090641920,-307.218909,0.0002699,7]
[356747568,1743090641929,-307.218909,0.0002699,7]
[356747569,1743090641938,-151.0,0.0002699,7]
[356747570,1743090641948,-383.19095,0.0002699,7]
[356747571,1743090641957,-383.19095,0.0002699,7]
[356747572,1743090641967,-522.772756,0.0002699,7]
[356747573,1743090641976,-522.772756,0.0002699,7]
[356747574,1743090641985,-151.0,0.0002699,7]
[356747575,1743090641993,-2648.456251,0.0002699,7]
[356747576,1743090642002,-2648.456251,0.0002699,7]
[356747577,1743090642011,-1311.926425,0.0002699,7]
[356747578,1743090642020,-1311.926425,0.0002699,7]
[356747579,1743090642030,-1012.36447,0.0002699,2]
[356747580,1743090642039,-1012.36447,0.0002699,2]
[356747581,1743090642049,-241.708368,0.0002699,7]
[356747582,1743090642058,-241.708368,0.0002699,7]
[356747583,1743090642067,-182.246162,0.0002699,7]
[356747584,1743090642077,-182.246162,0.0002699,7]
[356747585,1743090642087,-151.0,0.0002699,7]
[356747586,1743090642096,-151.0,0.0002699,7]
[356747587,1743090642105,-151.0,0.0002699,7]
[356747588,1743090642116,-151.020375,0.0002699,7]
[356747589,1743090642129,-151.0,0.0002699,7]
[356747590,1743090642139,-183.000175,0.0002699,7]
[356747591,1743090642148,-183.000175,0.0002699,7]
[356747592,1743090642159,-217.922623,0.0002699,7]
[356747593,1743090642169,-217.922623,0.0002699,7]
[356747594,1743090642180,-628.954665,0.0002699,7]
[356747595,1743090642191,-628.954665,0.0002699,7]
[356747596,1743090642203,-151.0,0.0002699,7]
[356747597,1743090642213,-151.0,0.0002699,7]
[356747598,1743090642222,-151.0,0.0002699,7]
[356747599,1743090642232,-398.619219,0.0002699,7]
[356747600,1743090642241,-398.619219,0.0002699,7]
[356747601,1743090642250,-151.0,0.0002699,7]
[356747602,1743090642259,-151.0,0.0002699,7]
[356747603,1743090642268,-151.0,0.0002699,7]
[356747604,1743090642278,-1683.724776,0.0002699,7]
[356747605,1743090642287,-1683.724776,0.0002699,7]
[356747606,1743090642297,-151.0,0.0002699,7]
[356747607,1743090642306,-191.473876,0.0002699,7]
[356747608,1743090642315,-191.473876,0.0002699,7]
[356747609,1743090642325,-200000.0,0.00027,2]
[356747610,1743090642335,-1000.0,0.00027,30]
[356747611,1743090642344,-96695.77760768,0.00027,4]
[356747612,1743090642354,-236.247696,0.00027,7]
[356747613,1743090642363,-236.247696,0.00027,7]
[356747614,1743090642372,-236.247696,0.00027,7]
[356747615,1743090642382,-236.247696,0.00027,7]
[356747616,1743090642391,-738.768868,0.00027,7]
[356747617,1743090642400,-738.768868,0.00027,7]
[356747618,1743090642410,-738.768868,0.00027,7]
[356747619,1743090642419,-738.768868,0.00027,7]
[356747620,1743090642428,-565.842788,0.00027,7]
[356747621,1743090642437,-565.842788,0.00027,7]
[356747622,1743090642446,-151.0,0.00027,7]
[356747623,1743090642456,-151.0,0.00027,7]
[356747624,1743090642465,-191.801395,0.00027,7]
[356747625,1743090642474,-191.801395,0.00027,7]
[356747626,1743090642483,-191.801395,0.00027,7]
[356747627,1743090642493,-191.801395,0.00027,7]
[356747628,1743090642502,-307.218909,0.00027,7]
[356747629,1743090642511,-307.218909,0.00027,7]
[356747630,1743090642521,-307.218909,0.00027,7]
[356747631,1743090642530,-307.218909,0.00027,7]
[356747632,1743090642539,-151.0,0.00027,16]
[356747633,1743090642548,-151.0,0.00027,7]
[356747634,1743090642557,-151.0,0.00027,7]
[356747635,1743090642567,-383.19095,0.00027,7]
[356747636,1743090642576,-383.19095,0.00027,7]
[356747637,1743090642586,-383.19095,0.00027,7]
[356747638,1743090642595,-383.19095,0.00027,7]
[356747639,1743090642604,-522.772756,0.00027,7]
[356747640,1743090642614,-522.772756,0.00027,7]
[356747641,1743090642623,-522.772756,0.00027,7]
[356747642,1743090642633,-522.772756,0.00027,7]
[356747643,1743090642642,-151.0,0.00027,7]
[356747644,1743090642652,-151.0,0.00027,7]
[356747645,1743090642661,-2648.456251,0.00027,7]
[356747646,1743090642670,-2648.456251,0.00027,7]
[356747647,1743090642679,-2648.456251,0.00027,7]
[356747648,1743090642688,-2648.456251,0.00027,7]
[356747649,1743090642698,-1311.926425,0.00027,7]
[356747650,1743090642707,-1311.926425,0.00027,7]
[356747651,1743090642716,-1311.926425,0.00027,7]
[356747653,1743090642725,-1311.926425,0.00027,7]
[356747654,1743090642735,-1012.36447,0.00027,2]
[356747655,1743090642744,-1012.36447,0.00027,2]
[356747656,1743090642753,-1012.36447,0.00027,2]
[356747657,1743090642763,-1012.36447,0.00027,2]
[356747658,1743090642772,-241.708368,0.00027,7]
[356747659,1743090642781,-241.708368,0.00027,7]
[356747660,1743090642790,-241.708368,0.00027,7]
[356747661,1743090642799,-241.708368,0.00027,7]
[356747662,1743090642808,-182.246162,0.00027,7]
[356747663,1743090642817,-182.246162,0.00027,7]
[356747664,1743090642826,-182.246162,0.00027,7]
[356747665,1743090642836,-182.246162,0.00027,7]
[356747666,1743090642845,-151.0,0.00027,7]
[356747667,1743090642854,-151.0,0.00027,7]
[356747668,1743090642863,-151.0,0.00027,7]
[356747669,1743090642872,-202.240598,0.00027,7]
[356747670,1743090642882,-151.0,0.00027,7]
[356747671,1743090642891,-164.229602,0.00027,7]
[356747672,1743090642900,-151.0,0.00027,7]
[356747673,1743090642909,-151.0,0.00027,7]
[356747674,1743090642919,-151.0,0.00027,7]
[356747675,1743090642928,-183.000175,0.00027,7]
[356747676,1743090642938,-183.000175,0.00027,7]
[356747677,1743090642947,-183.000175,0.00027,7]
[356747678,1743090642956,-183.000175,0.00027,7]
[356747679,1743090642965,-183.000175,0.00027,7]
[356747680,1743090642975,-183.000175,0.00027,7]
[356747681,1743090642984,-151.0,0.00027,7]
[356747682,1743090642994,-151.0,0.00027,7]
[356747683,1743090643003,-217.922623,0.00027,7]
[356747684,1743090643013,-217.922623,0.00027,7]
[356747685,1743090643022,-217.922623,0.00027,7]
[356747686,1743090643031,-217.922623,0.00027,7]
[356747687,1743090643041,-217.922623,0.00027,7]
[356747688,1743090643050,-217.922623,0.00027,7]
[356747689,1743090643060,-151.0,0.00027,7]
[356747690,1743090643069,-628.954665,0.00027,7]